fUSD/lending_fUSD_20250514
["ID","MTS","AMOUNT","RATE_DAILY","PERIOD"]
[361070332,1747230657516,-777.21,0.00011796,2]
[361070333,1747230657525,-1413.62,0.00011796,2]
[361070334,1747230657536,-989.79,0.00011796,2]
[361070335,1747230657545,-151.0,0.00011796,2]
[361070336,1747230657555,-2643.47,0.00011796,2]
[361070337,1747230657564,-916.28,0.00011796,2]
[361070338,1747230657573,-1252.56,0.00011796,2]
[361070339,1747230657583,-881.67,0.00011796,2]
[361070340,1747230657592,-1907.33,0.00011796,2]
[361070341,1747230657601,-955.54,0.00011796,2]
[361070342,1747230657611,-1764.25,0.00011796,2]
[361070343,1747230657622,-1856.79,0.00011796,2]
[361070344,1747230657631,-1343.61,0.00011796,2]
[361070345,1747230657643,-1030.39,0.00011796,2]
[361070346,1747230657653,-9334.63,0.00011796,2]
[361070347,1747230657663,-400.0,0.00011796,2]
[361070348,1747230657673,-400.0,0.00011796,2]
[361070349,1747230657683,-948.08,0.00011796,2]
[361070350,1747230657693,-400.0,0.00011796,2]
[361070351,1747230657702,-2659.91,0.00011796,2]
[361070352,1747230657711,-1436.38,0.00011796,2]
[361070353,1747230657721,-1077.36,0.00011796,2]
[361070354,1747230657730,-2526.78,0.00011796,2]
[361070355,1747230657739,-400.0,0.00011796,2]
[361070356,1747230657749,-2259.23,0.00011796,2]
[361070357,1747230657759,-400.0,0.00011796,2]
[361070358,1747230657768,-710.87,0.00011796,2]
[361070359,1747230657778,-642.98,0.00011796,2]
[361070360,1747230657788,-1622.97,0.00011796,2]
[361070361,1747230657797,-400.0,0.00011796,2]
[361070362,1747230657807,-8335.38,0.00011796,2]
[361070363,1747230657817,-1235.18,0.00011796,2]
[361070364,1747230657826,-16438.53,0.00011796,2]
[361070365,1747230657835,-494.83,0.00011796,2]
[361070366,1747230657844,-416.5,0.00011796,2]
[361070367,1747230657853,-400.0,0.00011796,2]
[361070368,1747230657862,-5156.82,0.00011796,2]
[361070369,1747230657872,-1391.05,0.00011796,2]
[361070370,1747230657882,-3271.15,0.00011796,2]
[361070371,1747230657894,-921.46,0.00011796,2]
[361070372,1747230657903,-2443.65,0.00011796,2]
[361070373,1747230657913,-6495.57,0.00011796,2]
[361070374,1747230657923,-400.0,0.00011796,2]
[361070375,1747230657932,-400.0,0.00011796,2]
[361070376,1747230657941,-496.95,0.00011796,2]
[361070377,1747230657951,-2558.77,0.00011796,2]
[361070378,1747230657960,-400.0,0.00011796,2]
[361070379,1747230657970,-675.58,0.00011796,2]
[361070380,1747230657979,-569.8,0.00011796,2]
[361070381,1747230657989,-3963.97,0.00011796,2]
[361070382,1747230657999,-400.0,0.00011796,2]
[361070383,1747230658008,-505.47,0.00011796,2]
[361070384,1747230658017,-504.66,0.00011796,2]
[361070385,1747230658026,-35393.76,0.00011796,2]
[361070386,1747230658035,-400.0,0.00011796,2]
[361070387,1747230658045,-2250.89,0.00011796,2]
[361070388,1747230658055,-851.97,0.00011796,2]
[361070389,1747230658065,-761.99,0.00011796,2]
[361070390,1747230658075,-698.53,0.00011796,2]
[361070391,1747230658085,-400.0,0.00011796,2]
[361070392,1747230658095,-441.74,0.00011796,2]
[361070393,1747230658104,-1002.22,0.00011796,2]
[361070394,1747230658114,-2276.64,0.00011796,2]
[361070395,1747230658124,-833.82,0.00011796,2]
[361070396,1747230658133,-404.0,0.00011796,2]
[361070397,1747230658144,-425.62,0.00011796,2]
[361070398,1747230658154,-767.41,0.00011796,2]
[361070399,1747230658164,-1420.24,0.00011796,2]
[361070400,1747230658173,-3460.84,0.00011796,2]
[361070401,1747230658183,-400.0,0.00011796,2]
[361070402,1747230658193,-12523.18,0.00011796,2]
[361070403,1747230658202,-400.0,0.00011796,2]
[361070404,1747230658212,-557.06,0.00011796,2]
[361070405,1747230658221,-151.0,0.00011796,2]
[361070406,1747230658231,-684.7,0.00011796,2]
[361070407,1747230658240,-400.0,0.00011796,2]
[361070408,1747230658250,-713.77,0.00011796,2]
[361070409,1747230658259,-4409.42,0.00011796,2]
[361070410,1747230658270,-400.0,0.00011796,2]
[361070411,1747230658279,-995.14,0.00011796,2]
[361070412,1747230658289,-6872.59,0.00011796,2]
[361070413,1747230658298,-400.0,0.00011796,2]
[361070414,1747230658307,-2089.74,0.00011796,2]
[361070415,1747230658317,-503.64,0.00011796,2]
[361070416,1747230658326,-400.0,0.00011796,2]
[361070417,1747230658336,-400.0,0.00011796,2]
[361070418,1747230658346,-613.54,0.00011796,2]
[361070419,1747230658358,-1000.0,0.00011796,2]
[361070420,1747230658368,-551.26,0.00011796,2]
[361070421,1747230658380,-300.0,0.00011796,2]
[361070422,1747230658391,-400.0,0.00011797,2]
[361070423,1747230658405,-400.0,0.00011797,2]
[361070424,1747230658415,-400.0,0.00011797,2]
[361070425,1747230658426,-579.06,0.00011797,2]
[361070426,1747230658437,-400.0,0.00011797,2]
[361070427,1747230658447,-400.0,0.00011797,2]
[361070428,1747230658458,-593.05,0.00011797,2]
[361070429,1747230658468,-419.53,0.00011797,2]
[361070430,1747230658477,-400.0,0.00011797,2]
[361070431,1747230658487,-400.0,0.00011797,2]
[361070432,1747230658496,-684.73,0.00011797,2]
[361070433,1747230658506,-400.0,0.00011797,2]
[361070434,1747230658515,-400.0,0.00011797,2]
[361070435,1747230658525,-400.0,0.00011797,2]
[361070436,1747230658731,-400.0,0.00011797,2]
[361070437,1747230658740,-400.0,0.00011797,2]
[361070438,1747230658750,-281.14863921,0.00011797,2]
[361070439,1747230658760,-400.0,0.00011797,2]
[361070440,1747230658770,-400.0,0.00011797,2]
[361070441,1747230658780,-400.0,0.00011797,2]
[361070442,1747230658789,-400.0,0.00011797,2]
[361070443,1747230658799,-400.0,0.00011797,2]
[361070444,1747230658808,-400.0,0.00011797,2]
[361070445,1747230658818,-151.0,0.00011797,2]
[361070446,1747230658828,-151.0,0.00011797,2]
[361070447,1747230658837,-400.0,0.00011797,2]
[361070448,1747230658847,-400.0,0.00011797,2]
[361070449,1747230658857,-400.0,0.00011797,2]
[361070450,1747230658866,-400.0,0.00011797,2]
[361070451,1747230658876,-400.0,0.00011797,2]
[361070452,1747230658885,-400.0,0.00011797,2]
[361070453,1747230658898,-400.0,0.00011797,2]
[361070454,1747230658908,-151.0,0.00011797,2]
[361070455,1747230658918,-400.0,0.00011797,2]
[361070456,1747230658928,-400.0,0.00011797,2]
[361070457,1747230658938,-400.0,0.00011797,2]
[361070458,1747230658948,-459.96,0.00011797,2]
[361070459,1747230658958,-409.59,0.00011797,2]
[361070460,1747230658968,-151.0,0.00011797,2]
[361070461,1747230658978,-400.0,0.00011797,2]
[361070462,1747230658989,-400.0,0.00011797,2]
[361070463,1747230658999,-400.0,0.00011797,2]
[361070464,1747230659010,-151.0,0.00011797,2]
[361070465,1747230659021,-151.0,0.00011797,2]
[361070466,1747230659031,-972.08,0.00011797,2]
[361070467,1747230659041,-400.0,0.00011797,2]
[361070468,1747230659051,-400.0,0.00011797,2]
[361070469,1747230659061,-873.53,0.00011797,2]
[361070470,1747230659071,-509.3,0.00011797,2]
[361070471,1747230659082,-1663.05,0.00011797,2]
[361070472,1747230659092,-754.04,0.00011797,2]
[361070473,1747230659103,-540.43,0.00011797,2]
[361070474,1747230659112,-940.1,0.00011797,2]
[361070475,1747230659122,-400.0,0.00011797,2]
[361070476,1747230659133,-152.556364,0.00011797,2]
[361070477,1747230659147,-400.0,0.00011797,2]
[361070478,1747230659157,-274.0922375,0.00011797,2]
[361070479,1747230659168,-151.0,0.00011797,2]
[361070480,1747230659178,-400.0,0.00011797,2]
[361070481,1747230659188,-151.0,0.00011797,2]
[361070482,1747230659198,-151.0,0.00011797,2]
[361070483,1747230659208,-400.0,0.00011797,2]
[361070484,1747230659218,-577.66,0.00011797,2]
[361070485,1747230659227,-400.0,0.00011797,2]
[361070486,1747230659237,-591.74,0.00011797,2]
[361070487,1747230659247,-400.0,0.00011797,2]
[361070488,1747230659257,-400.0,0.00011797,2]
[361070489,1747230659266,-551.46,0.00011797,2]
[361070490,1747230659276,-400.0,0.00011797,2]
[361070491,1747230659286,-400.0,0.00011797,2]
[361070492,1747230659295,-400.0,0.00011797,2]
[361070493,1747230659305,-400.0,0.00011797,2]
[361070494,1747230659315,-400.0,0.00011797,2]
[361070495,1747230659325,-1664.97,0.00011797,2]
[361070496,1747230659335,-442.88,0.00011797,2]
[361070497,1747230659345,-400.0,0.00011797,2]
[361070498,1747230659357,-653.41,0.00011797,2]
[361070499,1747230659367,-400.0,0.00011797,2]
[361070500,1747230659376,-846.45,0.00011797,2]
[361070501,1747230659386,-400.0,0.00011797,2]
[361070502,1747230659402,-855.69,0.00011797,2]
[361070503,1747230659412,-400.0,0.00011797,2]
[361070504,1747230659422,-400.0,0.00011797,2]
[361070505,1747230659433,-400.0,0.00011797,2]
[361070506,1747230659442,-400.0,0.00011797,2]
[361070507,1747230659452,-400.0,0.00011797,2]
[361070508,1747230659461,-400.0,0.00011797,2]
[361070509,1747230659471,-400.0,0.00011797,2]
[361070510,1747230659480,-400.0,0.00011797,2]
[361070511,1747230659489,-400.0,0.00011797,2]
[361070512,1747230659499,-415.93,0.00011797,2]
[361070513,1747230659508,-400.0,0.00011797,2]
[361070514,1747230659518,-1573.57,0.00011797,2]
[361070515,1747230659527,-151.0,0.00011797,2]
[361070516,1747230659536,-400.0,0.00011797,2]
[361070517,1747230659546,-820.65,0.00011797,2]
[361070518,1747230659555,-400.0,0.00011797,2]
[361070519,1747230659566,-400.0,0.00011797,2]
[361070520,1747230659575,-400.0,0.00011797,2]
[361070521,1747230659585,-1888.75,0.00011797,2]
[361070522,1747230659594,-400.0,0.00011797,2]
[361070523,1747230659604,-400.0,0.00011797,2]
[361070524,1747230659613,-724.57,0.00011797,2]
[361070525,1747230659623,-400.0,0.00011797,2]
[361070526,1747230659632,-1562.95,0.00011797,2]
[361070527,1747230659646,-922.84,0.00011797,2]
[361070528,1747230659655,-400.0,0.00011797,2]
[361070529,1747230659664,-590.63,0.00011797,2]
[361070530,1747230659674,-415.66,0.00011797,2]
[361070531,1747230659684,-897.6,0.00011797,2]
[361070532,1747230659693,-472.64,0.00011797,2]
[361070533,1747230659703,-430.44,0.00011797,2]
[361070534,1747230659712,-1371.52,0.00011797,2]
[361070535,1747230659722,-3515.79,0.00011797,2]
[361070536,1747230659731,-544.43,0.00011797,2]
[361070537,1747230659742,-1110.39,0.00011797,2]
[361070538,1747230659751,-400.0,0.00011797,2]
[361070539,1747230659761,-400.0,0.00011797,2]
[361070540,1747230659770,-561.24,0.00011797,2]
[361070541,1747230659779,-400.0,0.00011797,2]
[361070542,1747230659788,-780.16,0.00011797,2]
[361070543,1747230659798,-400.0,0.00011797,2]
[361070544,1747230659807,-455.12,0.00011797,2]
[361070545,1747230659816,-400.0,0.00011797,2]
[361070546,1747230659826,-400.0,0.00011797,2]
[361070547,1747230659835,-400.0,0.00011797,2]
[361070548,1747230659844,-422.02,0.00011797,2]
[361070549,1747230659854,-400.0,0.00011797,2]
[361070550,1747230659863,-400.0,0.00011797,2]
[361070551,1747230659873,-376.77,0.00011797,2]
[361070552,1747230659883,-490.18,0.00011797,2]
[361070553,1747230659894,-400.0,0.00011797,2]
[361070554,1747230659904,-196.778044,0.00011797,2]
[361070555,1747230659914,-400.0,0.00011797,2]
[361070556,1747230659923,-400.0,0.00011797,2]
[361070557,1747230659934,-196.778044,0.00011797,2]
[361070558,1747230659944,-1156.46,0.00011797,2]
[361070559,1747230659954,-831.71,0.00011797,2]
[361070560,1747230659965,-445.28,0.00011797,2]
[361070561,1747230659975,-400.0,0.00011797,2]
[361070562,1747230659985,-400.0,0.00011797,2]
[361070563,1747230659995,-400.0,0.00011797,2]
[361070564,1747230660005,-1161.11,0.00011797,2]
[361070565,1747230660014,-1135.486067,0.00011797,2]
[361070566,1747230660024,-400.0,0.00011797,2]
[361070567,1747230660034,-1135.486067,0.00011797,2]
[361070568,1747230660045,-400.0,0.00011797,2]
[361070569,1747230660055,-627.33,0.00011797,2]
[361070570,1747230660065,-400.0,0.00011797,2]
[361070571,1747230660076,-385.99682016,0.00011797,2]
[361070572,1747230660086,-400.0,0.00011797,2]
[361070573,1747230660096,-465.97,0.00011797,2]
[361070574,1747230660106,-400.0,0.00011797,2]
[361070575,1747230660116,-542.122738,0.00011797,2]
[361070576,1747230660126,-542.122738,0.00011797,2]
[361070577,1747230660135,-1082.11,0.00011797,2]
[361070578,1747230660149,-400.0,0.00011797,2]
[361070579,1747230660159,-969.12,0.00011797,2]
[361070580,1747230660168,-400.0,0.00011797,2]
[361070581,1747230660178,-400.0,0.00011797,2]
[361070582,1747230660187,-985.8,0.00011797,2]
[361070583,1747230660197,-639.52,0.00011797,2]
[361070584,1747230660207,-338.80938459,0.00011797,2]
[361070585,1747230660216,-400.0,0.00011797,2]
[361070586,1747230660226,-562.61,0.00011797,2]
[361070587,1747230660236,-400.0,0.00011797,2]
[361070588,1747230660246,-400.0,0.00011797,2]
[361070589,1747230660257,-400.0,0.00011797,2]
[361070590,1747230660267,-423.22668239,0.00011797,2]
[361070591,1747230660277,-841.3,0.00011797,2]
[361070592,1747230660287,-400.0,0.00011797,2]
[361070593,1747230660297,-927.79,0.00011797,2]
[361070594,1747230660306,-400.0,0.00011797,2]
[361070595,1747230660316,-1641.5,0.00011797,2]
[361070596,1747230660326,-400.0,0.00011797,2]
[361070597,1747230660336,-400.0,0.00011797,2]
[361070598,1747230660345,-811.67,0.00011797,2]
[361070599,1747230660358,-402.92,0.00011797,2]
[361070600,1747230660368,-855.08,0.00011797,2]
[361070601,1747230660378,-497.07,0.00011797,2]
[361070602,1747230660388,-151.0,0.00011797,2]
[361070603,1747230660401,-400.0,0.00011797,2]
[361070604,1747230660411,-400.0,0.00011797,2]
[361070605,1747230660421,-324.7,0.00011797,2]
[361070606,1747230660431,-507.23,0.00011797,2]
[361070607,1747230660441,-191.5077289,0.00011797,2]
[361070608,1747230660451,-400.0,0.00011797,2]
[361070609,1747230660461,-216.83345,0.00011797,2]
[361070610,1747230660471,-400.0,0.00011797,2]
[361070611,1747230660481,-569.55,0.00011797,2]
[361070612,1747230660494,-216.83345,0.00011797,2]
[361070613,1747230660504,-428.27,0.00011797,2]
[361070614,1747230660514,-715.59,0.00011797,2]
[361070615,1747230660524,-1620.28,0.00011797,2]
[361070616,1747230660534,-505.1,0.00011797,2]
[361070617,1747230660544,-2351.68,0.00011797,2]
[361070618,1747230660554,-474.72,0.00011797,2]
[361070619,1747230660565,-400.0,0.00011797,2]
[361070620,1747230660575,-400.0,0.00011797,2]
[361070621,1747230660585,-1068.9,0.00011797,2]
[361070622,1747230660595,-619.36,0.00011797,2]
[361070623,1747230660604,-1965.59564,0.00011797,2]
[361070624,1747230660614,-400.0,0.00011797,2]
[361070625,1747230660623,-449.71,0.00011797,2]
[361070626,1747230660634,-1965.59564,0.00011797,2]
[361070627,1747230660647,-400.0,0.00011797,2]
[361070628,1747230660657,-151.0,0.00011797,2]
[361070629,1747230660668,-151.0,0.00011797,2]
[361070630,1747230660678,-300.0,0.00011797,2]
[361070631,1747230660687,-198.695711,0.00011798,2]
[361070632,1747230660697,-198.695711,0.00011798,2]
[361070633,1747230660707,-151.0,0.00011798,2]
[361070634,1747230660717,-151.0,0.00011798,2]
[361070635,1747230660726,-365.215082,0.00011798,2]
[361070636,1747230660736,-365.215082,0.00011798,2]
[361070637,1747230660745,-276.210792,0.00011798,2]
[361070638,1747230660756,-276.210792,0.00011798,2]
[361070639,1747230660765,-151.0,0.00011798,2]
[361070640,1747230660775,-151.0,0.00011798,2]
[361070641,1747230660785,-151.0,0.00011798,2]
[361070642,1747230660794,-468.204198,0.00011798,2]
[361070643,1747230660805,-468.204198,0.00011798,2]
[361070644,1747230660814,-158.232811,0.00011798,2]
[361070645,1747230660824,-151.0,0.00011798,2]
[361070646,1747230660834,-158.232811,0.00011798,2]
[361070647,1747230660844,-151.0,0.00011798,2]
[361070648,1747230660854,-236.131091,0.00011798,2]
[361070649,1747230660864,-174.998011,0.00011798,2]
[361070650,1747230660874,-236.131091,0.00011798,2]
[361070651,1747230660884,-174.998011,0.00011798,2]
[361070652,1747230660898,-151.0,0.00011798,2]
[361070653,1747230660908,-176.73167231,0.00011798,2]
[361070654,1747230660918,-151.0,0.00011799,2]
[361070655,1747230660928,-217.271898,0.00011799,2]
[361070656,1747230660937,-217.271898,0.00011799,2]
[361070657,1747230660947,-151.0,0.00011799,2]
[361070658,1747230660957,-151.0,0.00011799,2]
[361070659,1747230660967,-281.595959,0.00011799,2]
[361070660,1747230660977,-151.0,0.00011799,2]
[361070661,1747230660986,-151.0,0.00011799,2]
[361070662,1747230660996,-151.0,0.00011799,2]
[361070663,1747230661005,-259.701475,0.00011799,2]
[361070664,1747230661015,-151.0,0.00011799,2]
[361070665,1747230661025,-151.0,0.00011799,2]
[361070666,1747230661034,-151.0,0.00011799,2]
[361070667,1747230661044,-151.0,0.00011799,2]
[361070668,1747230661053,-151.0,0.00011799,2]
[361070669,1747230661063,-151.0,0.000118,2]
[361070670,1747230661073,-151.0,0.000118,2]
[361070671,1747230661083,-167.339465,0.000118,2]
[361070672,1747230661092,-167.339465,0.000118,2]
[361070673,1747230661102,-5304.95,0.000118,2]
[361070674,1747230661112,-151.0,0.00011801,2]
[361070675,1747230661122,-151.0,0.00011801,2]
[361070676,1747230661132,-151.0,0.00011801,2]
[361070677,1747230661148,-208.202388,0.00011801,2]
[361070678,1747230661157,-208.202388,0.00011801,2]
[361070679,1747230661168,-2250.89,0.0001182,2]
[361070680,1747230661178,-300.0,0.0001182,2]
[361070681,1747230661188,-151.0,0.00011821,2]
[361070682,1747230661198,-151.0,0.00011821,2]
[361070683,1747230661207,-152.556364,0.00011821,2]
[361070684,1747230661217,-151.0,0.00011821,2]
[361070685,1747230661227,-151.0,0.00011821,2]
[361070686,1747230661237,-1122.202734,0.00011821,2]
[361070687,1747230661246,-1122.202734,0.00011821,2]
[361070688,1747230661256,-151.0,0.00011821,2]
[361070689,1747230661267,-196.778044,0.00011821,2]
[361070690,1747230661278,-151.0,0.00011821,2]
[361070691,1747230661288,-196.778044,0.00011821,2]
[361070692,1747230661298,-1135.486067,0.00011821,2]
[361070693,1747230661309,-1135.486067,0.00011821,2]
[361070694,1747230661318,-542.122738,0.00011821,2]
[361070695,1747230661327,-542.122738,0.00011821,2]
[361070696,1747230661337,-151.0,0.00011821,2]
[361070697,1747230661347,-151.0,0.00011821,2]
[361070698,1747230661359,-151.0,0.00011821,2]
[361070699,1747230661368,-151.0,0.00011821,2]
[361070700,1747230661378,-585.535374,0.00011821,2]
[361070701,1747230661388,-585.535374,0.00011821,2]
[361070702,1747230661402,-151.0,0.00011821,2]
[361070703,1747230661412,-151.0,0.00011821,2]
[361070704,1747230661422,-216.83345,0.00011821,2]
[361070705,1747230661434,-216.83345,0.00011821,2]
[361070706,1747230661444,-151.0,0.00011821,2]
[361070707,1747230661454,-151.0,0.00011821,2]
[361070708,1747230661463,-151.0,0.00011821,2]
[361070709,1747230661473,-180.989683,0.00011821,2]
[361070710,1747230661483,-180.989683,0.00011821,2]
[361070711,1747230661492,-154.875,0.0001183,2]
[361070712,1747230661501,-150.0,0.0001183,2]
[361070713,1747230661511,-198.95,0.0001183,2]
[361070714,1747230661521,-157.26,0.0001183,2]
[361070715,1747230661530,-278.189,0.0001183,2]
[361070716,1747230661540,-150.0,0.0001183,2]
[361070717,1747230661549,-500.0,0.000119,2]
[361070718,1747230661559,-917.0,0.000119,2]
[361070719,1747230661569,-6082.86343281,0.000119,2]
[361070720,1747230661579,-199.01807655,0.000119,2]
[361070721,1747230661589,-442.67373161,0.000119,2]
[361070722,1747230661599,-250.0,0.00011954,2]
[361070723,1747230661609,-294.08532314,0.00011989,2]
[361070724,1747230661618,-381.05022968,0.00011999,2]
[361070725,1747230661628,-2250.89,0.00011999,2]
[361070726,1747230661638,-2250.89,0.00011999,2]
[361070727,1747230661650,-2250.89,0.00011999,2]
[361070728,1747230661660,-2250.89,0.00011999,2]
[361070729,1747230661670,-2250.89,0.00011999,2]
[361070730,1747230661680,-1338.18544301,0.00011999,2]
[361070731,1747230661691,-722256.17612036,0.00011999,2]
[361070732,1747230662295,-1560.6084,0.00011999,2]
[361070733,1747230663184,-19280.73780558,0.00011999,2]
[361070734,1747230663196,-1358.89812877,0.00011999,2]
[361070735,1747230663225,-2263.26,0.00011247,2]
[361070736,1747230663235,-2492.34,0.00011999,2]
[361070737,1747230663248,-744.61758929,0.00011999,2]
[361070738,1747230663260,-2768.10488298,0.00011999,2]
[361070739,1747230663273,-88370.47485093,0.00011999,2]
[361070740,1747230663283,-900.0,0.00012,3]
[361070741,1747230663294,-500.0,0.00012,2]
[361070742,1747230663304,-104133.23202416,0.00012,2]
[361070743,1747230663331,-500.0,0.00012,2]
[361070744,1747230663343,-8479.1519975,0.00012,2]
[361070745,1747230663408,-1300.0,0.00012,2]
[361070746,1747230663420,-495.68719811,0.00012,2]
[361070747,1747230663606,150.0,0.000135,5]
[361070748,1747230663725,-432.71959327,0.000109,2]
[361070749,1747230663737,-116.60916387,0.000109,2]
[361070750,1747230663746,-400.0,0.00010972,2]
[361070751,1747230663756,-400.0,0.00010974,2]
[361070752,1747230663765,-3.53388834,0.00011246,2]
[361070753,1747230663794,-396.46611166,0.00011246,2]
[361070754,1747230663804,-300.5913025,0.0001152,2]
[361070755,1747230663814,-2263.26,0.00011521,2]
[361070756,1747230663824,-2263.26,0.00011795,2]
[361070757,1747230663834,-12425.73679261,0.00012,2]
[361070758,1747230663845,-44544.58388864,0.00012,2]
[361070759,1747230663873,-427.07,0.00010973,2]
[361070760,1747230663884,-4815.84022241,0.00011786,2]
[361070761,1747230663897,-33045.45524452,0.00012,2]
[361070762,1747230663909,-4893.70123458,0.00012,2]
[361070763,1747230664403,-151.36,0.0001042,2]
[361070764,1747230664412,-1471.32,0.00010972,2]
[361070765,1747230664422,-589.23,0.00010972,2]
[361070766,1747230664433,-400.0,0.00010974,2]
[361070767,1747230664444,-500.0,0.00011123,2]
[361070768,1747230664454,-1471.32,0.00011246,2]
[361070769,1747230664464,-589.23,0.00011246,2]
[361070770,1747230664474,-150.0,0.00011337,2]
[361070771,1747230664483,-1471.32,0.0001152,2]
[361070772,1747230664493,-589.23,0.0001152,2]
[361070773,1747230664503,-151.36,0.00011722,2]
[361070774,1747230664513,-1471.32,0.00011794,2]
[361070775,1747230664522,-589.23,0.00011794,2]
[361070776,1747230664532,-11102.08,0.00012,2]
[361070777,1747230664544,-5225.04908104,0.00012,2]
[361070778,1747230664571,-103635.44271354,0.00012,2]
[361070779,1747230664614,-1234.42152492,0.00012,2]
[361070780,1747230664626,-1060.47899438,0.00012,2]
[361070781,1747230664638,-451.70259896,0.00012,2]
[361070782,1747230664652,-8933.55309578,0.00012,2]
[361070783,1747230664663,-208344.20850407,0.00012,2]
[361070784,1747230664675,-2545.86798535,0.00012,2]
[361070785,1747230664686,-501.27598242,0.00012,2]
[361070786,1747230707412,-150.75198946,0.00015,14]
[361070787,1747230828820,-1361.33,0.000184,7]
[361070788,1747230828848,-492.98,0.00019,7]
[361070789,1747230828875,-500.0,0.00019,7]
[361070790,1747230829216,-500.0,0.00019,7]
[361070791,1747230829244,-500.0,0.00019,7]
[361070792,1747230829272,-500.0,0.00019,7]
[361070793,1747230829303,-500.0,0.00019,7]
[361070794,1747230829331,-500.0,0.00019,7]
[361070795,1747230829358,-500.0,0.00019,7]
[361070796,1747230829386,-500.0,0.00019,7]
[361070797,1747230829420,-569.35,0.00019,7]
[361070798,1747230829448,-500.0,0.00019,7]
[361070799,1747230853228,952.93,0.000187,7]
[361070800,1747230936817,599.99252855,0.00018666,8]
[361070801,1747231043436,667.05,0.000188,7]
[361070802,1747231232725,466.94,0.000188,7]
[361070803,1747231241337,1600.0,0.00019,7]
[361070804,1747231263485,-450.0,0.0001,2]
[361070805,1747231263509,-164.63034405,0.00010517,2]
[361070806,1747231263534,-774.08,0.00010617,2]
[361070807,1747231263558,-1200.0,0.00010871,2]
[361070808,1747231263590,-500.0,0.00010872,2]
[361070809,1747231263615,-150.0,0.00010872,2]
[361070810,1747231263638,-300.0,0.00010872,2]
[361070811,1747231263663,-300.0,0.00010872,2]
[361070812,1747231263686,-2791.28965595,0.00010873,2]
[361070813,1747231278639,437.27,8.378e-05,2]
[361070817,1747231423194,326.86,0.000189,7]
[361070818,1747231439489,400.0,0.00019,7]
[361070819,1747231514288,1000.0,0.00019,7]
[361070820,1747231521377,1000.0,0.00019,7]
[361070821,1747231534487,1200.0,0.00019,7]
[361070822,1747231535333,666.0,0.00019,7]
[361070823,1747231607874,666.0,0.00019,7]
[361070824,1747231611490,228.8,0.00019,7]
[361070825,1747231618643,666.0,0.00019,7]
[361070826,1747231637375,666.0,0.00019,7]
[361070827,1747231646703,666.0,0.00019,7]
[361070828,1747231650118,380.10747145,0.00019,7]
[361070829,1747231703381,150.0,0.00010087,7]
[361070850,1747231831601,-228.99,0.00010075,2]
[361070851,1747231831611,-558.73537109,0.00010204,2]
[361070852,1747231831624,-441.26462891,0.00010204,2]
[361070853,1747231831633,-250.0,0.00010294,2]
[361070854,1747231831643,-437.27,0.00010641,2]